fUSD/lending_fUSD_20240526
["ID","MTS","AMOUNT","RATE_DAILY","PERIOD"]
[327978336,1716732714364,-853.64,0.00032328,4]
[327978337,1716732714374,-1592.22,0.00032328,4]
[327978338,1716732714384,-1027.97,0.00032328,4]
[327978339,1716732714395,-1044.37,0.00032328,4]
[327978340,1716732714405,-1313.69,0.00032328,4]
[327978341,1716732714416,-624.18,0.00032328,4]
[327978342,1716732714426,-1190.26,0.00032328,4]
[327978343,1716732714436,-4137.91,0.00032328,4]
[327978344,1716732714446,-1036.79,0.00032328,4]
[327978345,1716732714456,-850.51,0.00032328,4]
[327978346,1716732714466,-1474.98,0.00032328,4]
[327978347,1716732714476,-916.61,0.00032328,4]
[327978348,1716732714489,-500.0,0.00032328,4]
[327978349,1716732714499,-707.12,0.00032328,4]
[327978350,1716732714510,-2412.83,0.00032328,4]
[327978351,1716732714520,-687.58,0.00032328,4]
[327978352,1716732714531,-1038.84,0.00032328,4]
[327978353,1716732714541,-928.91,0.00032328,4]
[327978354,1716732714551,-500.0,0.00032328,4]
[327978355,1716732714561,-654.73,0.00032328,4]
[327978356,1716732714573,-592.19,0.00032328,4]
[327978357,1716732714583,-500.0,0.00032328,4]
[327978358,1716732714594,-502.52,0.00032328,4]
[327978359,1716732714604,-1244.5,0.00032328,4]
[327978360,1716732714614,-586.69,0.00032328,4]
[327978361,1716732714624,-901.87,0.00032328,4]
[327978362,1716732714635,-827.03,0.00032328,4]
[327978363,1716732714645,-5000.0,0.00032343,2]
[327978364,1716732714655,-2550.71,0.00032385,2]
[327978365,1716732714666,-445.0,0.000324,21]
[327978366,1716732714674,-819.90339774,0.00032406,4]
[327978367,1716732714686,-819.90339773,0.00032406,4]
[327978368,1716732714696,-819.90339773,0.00032406,4]
[327978369,1716732714707,-819.90339773,0.00032406,4]
[327978370,1716732714718,-819.90339773,0.00032406,4]
[327978371,1716732714727,-819.90339773,0.00032406,4]
[327978372,1716732714736,-819.90339773,0.00032406,4]
[327978373,1716732714746,-819.90339773,0.00032406,4]
[327978374,1716732714757,-819.90339773,0.00032406,4]
[327978375,1716732714767,-819.90339773,0.00032406,4]
[327978376,1716732714776,-819.90339773,0.00032406,4]
[327978377,1716732714786,-819.90339773,0.00032406,4]
[327978378,1716732714796,-819.90339773,0.00032406,4]
[327978379,1716732714806,-150.0,0.000325,10]
[327978380,1716732714815,-753.04240616,0.00032568,7]
[327978381,1716732714825,-232.27766012,0.00032568,7]
[327978382,1716732714835,-249.23485907,0.00032568,7]
[327978383,1716732714844,-2006.01668888,0.00032568,7]
[327978384,1716732714854,-168.32642212,0.0003259,2]
[327978385,1716732714864,-977.98,0.00032602,5]
[327978386,1716732714873,-327.98440856,0.00032602,4]
[327978387,1716732714885,-867.51,0.00032602,4]
[327978388,1716732714895,-613.37,0.00032602,4]
[327978389,1716732714905,-689.25,0.00032602,4]
[327978390,1716732714914,-912.17,0.00032602,4]
[327978391,1716732714924,-577.1,0.00032602,4]
[327978392,1716732714934,-3083.08,0.00032602,4]
[327978393,1716732714944,-691.79,0.00032602,4]
[327978394,1716732714954,-500.0,0.00032602,4]
[327978395,1716732714964,-1003.57,0.00032602,4]
[327978396,1716732714974,-702.93,0.00032602,4]
[327978397,1716732714984,-900.58,0.00032602,4]
[327978398,1716732714994,-500.0,0.00032602,4]
[327978399,1716732715005,-891.34,0.00032602,4]
[327978400,1716732715015,-838.16,0.00032602,2]
[327978401,1716732715025,-576.75,0.00032602,4]
[327978402,1716732715035,-615.98,0.00032602,4]
[327978403,1716732715045,-767.17,0.00032602,4]
[327978404,1716732715054,-633.88,0.00032602,4]
[327978405,1716732715064,-758.6,0.00032602,4]
[327978406,1716732715075,-1363.1,0.00032602,4]
[327978407,1716732715086,-645.71899536,0.00032602,4]
[327978408,1716732715096,-535.29,0.00032602,4]
[327978409,1716732715105,-500.0,0.00032602,4]
[327978410,1716732715115,-596.76,0.00032602,4]
[327978411,1716732715125,-500.0,0.00032602,4]
[327978412,1716732715135,-500.0,0.00032602,4]
[327978413,1716732715144,-500.0,0.00032602,4]
[327978414,1716732715154,-547.03743844,0.00032602,4]
[327978415,1716732715164,-638.58,0.00032602,4]
[327978416,1716732715174,-813.06,0.00032602,4]
[327978417,1716732715184,-676.35,0.00032602,4]
[327978418,1716732715194,-1206.79,0.00032602,4]
[327978419,1716732715204,-758.9,0.00032602,4]
[327978420,1716732715213,-544.35,0.00032602,2]
[327978421,1716732715223,-500.0,0.00032602,4]
[327978422,1716732715233,-500.0,0.00032602,4]
[327978423,1716732715243,-607.01,0.00032602,4]
[327978424,1716732715252,-869.48,0.00032602,4]
[327978425,1716732715262,-500.0,0.00032602,4]
[327978426,1716732715271,-598.19,0.00032602,4]
[327978427,1716732715281,-501.39,0.00032602,4]
[327978428,1716732715290,-565.06,0.00032602,4]
[327978429,1716732715300,-500.0,0.00032602,4]
[327978430,1716732715309,-536.08,0.00032602,4]
[327978431,1716732715319,-500.0,0.00032602,4]
[327978432,1716732715328,-500.0,0.00032602,4]
[327978433,1716732715337,-575.01,0.00032602,4]
[327978434,1716732715347,-500.0,0.00032602,4]
[327978435,1716732715356,-179.19,0.00032602,4]
[327978436,1716732715367,-664.28,0.00032602,4]
[327978437,1716732715376,-500.0,0.00032602,4]
[327978438,1716732715386,-500.0,0.00032602,4]
[327978439,1716732715395,-1420.49,0.00032602,4]
[327978440,1716732715404,-911.95,0.00032602,4]
[327978441,1716732715415,-532.91,0.00032602,4]
[327978442,1716732715424,-876.64,0.00032602,4]
[327978443,1716732715434,-845.02,0.00032602,4]
[327978444,1716732715444,-1217.15,0.00032602,4]
[327978445,1716732715454,-500.0,0.00032602,4]
[327978446,1716732715464,-500.0,0.00032602,4]
[327978447,1716732715474,-640.53864315,0.00032602,4]
[327978448,1716732715490,-1573.33,0.00032602,4]
[327978449,1716732715501,-1943.35,0.00032602,4]
[327978450,1716732715510,-647.0,0.00032602,4]
[327978451,1716732715520,-827.18,0.00032602,4]
[327978452,1716732715531,-525.9,0.00032602,4]
[327978453,1716732715541,-1647.19,0.00032602,4]
[327978454,1716732715550,-812.79,0.00032602,4]
[327978455,1716732715561,-656.92,0.00032602,4]
[327978456,1716732715571,-1479.16,0.00032602,4]
[327978457,1716732715581,-500.0,0.00032602,4]
[327978458,1716732715592,-859.25,0.00032602,4]
[327978459,1716732715602,-705.7,0.00032602,4]
[327978460,1716732715611,-524.26,0.00032602,4]
[327978461,1716732715621,-852.83,0.00032602,4]
[327978462,1716732715631,-792.18,0.00032602,4]
[327978463,1716732715640,-2563.75,0.00032602,4]
[327978464,1716732715650,-9047.47,0.00032602,4]
[327978465,1716732715661,-500.0,0.00032602,4]
[327978466,1716732715670,-500.0,0.00032602,4]
[327978467,1716732715680,-543.61,0.00032602,4]
[327978468,1716732715690,-937.7,0.00032602,4]
[327978469,1716732715701,-657.54,0.00032602,4]
[327978470,1716732715711,-782.0,0.00032602,4]
[327978471,1716732715720,-1533.52,0.00032602,4]
[327978472,1716732715730,-1870.6,0.00032602,4]
[327978473,1716732715740,-662.47,0.00032602,4]
[327978474,1716732715750,-523.58,0.00032602,4]
[327978475,1716732715759,-349.25453651,0.00032602,4]
[327978476,1716732715769,-611.87,0.00032602,4]
[327978477,1716732715778,-709.98,0.00032602,4]
[327978478,1716732715788,-500.0,0.00032602,4]
[327978479,1716732715797,-739.81,0.00032602,4]
[327978480,1716732715807,-500.0,0.00032602,4]
[327978481,1716732715816,-6199.76,0.00032602,4]
[327978482,1716732715988,-724.86,0.00032602,4]
[327978483,1716732715997,-1320.63,0.00032602,4]
[327978484,1716732716007,-500.0,0.00032602,4]
[327978485,1716732716016,-852.95,0.00032602,4]
[327978486,1716732716026,-2564.82,0.00032602,4]
[327978487,1716732716035,-818.52,0.00032602,4]
[327978488,1716732716045,-2538.12,0.00032602,4]
[327978489,1716732716055,-500.0,0.00032602,4]
[327978490,1716732716064,-598.56,0.00032602,4]
[327978491,1716732716074,-2937.07,0.00032602,4]
[327978492,1716732716084,-571.73,0.00032602,4]
[327978493,1716732716094,-1041.17,0.00032602,4]
[327978494,1716732716104,-656.51,0.00032602,4]
[327978495,1716732716114,-1310.5,0.00032602,4]
[327978496,1716732716124,-552.73,0.00032602,4]
[327978497,1716732716133,-967.98,0.00032602,4]
[327978498,1716732716144,-1148.48,0.00032602,4]
[327978499,1716732716153,-795.96,0.00032602,4]
[327978500,1716732716163,-353.47913121,0.00032602,4]
[327978501,1716732716173,-678.18,0.00032602,4]
[327978502,1716732716183,-576.35,0.00032602,4]
[327978503,1716732716193,-606.32,0.00032602,4]
[327978504,1716732716204,-585.71,0.00032602,4]
[327978505,1716732716214,-2390.71,0.00032602,4]
[327978506,1716732716224,-1027.88,0.00032602,4]
[327978507,1716732716234,-720.94,0.00032602,4]
[327978508,1716732716243,-884.01,0.00032602,4]
[327978509,1716732716253,-571.26,0.00032602,4]
[327978510,1716732716263,-1408.04,0.00032602,4]
[327978511,1716732716273,-500.0,0.00032602,4]
[327978512,1716732716283,-500.0,0.00032602,4]
[327978513,1716732716292,-1085.42,0.00032602,4]
[327978514,1716732716302,-1268.26,0.00032602,4]
[327978515,1716732716312,-8694.34,0.00032602,4]
[327978516,1716732716322,-500.0,0.00032602,4]
[327978517,1716732716332,-1268.05,0.00032602,4]
[327978518,1716732716341,-1448.06,0.00032602,4]
[327978519,1716732716351,-972.62,0.00032602,4]
[327978520,1716732716361,-573.16,0.00032602,4]
[327978521,1716732716371,-3904.28,0.00032602,4]
[327978522,1716732716381,-914.87,0.00032602,4]
[327978523,1716732716392,-1089.59,0.00032602,4]
[327978524,1716732716402,-885.34,0.00032602,4]
[327978525,1716732716412,-591.51,0.00032602,4]
[327978526,1716732716421,-500.0,0.00032602,4]
[327978527,1716732716431,-1079.94,0.00032602,4]
[327978528,1716732716440,-879.76,0.00032602,4]
[327978529,1716732716451,-1841.81,0.00032602,4]
[327978530,1716732716461,-500.0,0.00032602,4]
[327978531,1716732716471,-625.43,0.00032602,4]
[327978532,1716732716481,-1077.58,0.00032602,4]
[327978533,1716732716495,-710.46,0.00032602,4]
[327978534,1716732716505,-568.85,0.00032602,4]
[327978535,1716732716515,-647.72,0.00032602,4]
[327978536,1716732716526,-869.84,0.00032602,4]
[327978537,1716732716536,-678.18,0.00032602,4]
[327978538,1716732716546,-214.29064988,0.00032602,4]
[327978539,1716732716555,-717.42,0.00032602,4]
[327978540,1716732716566,-576.0,0.00032602,4]
[327978541,1716732716576,-1137.45,0.00032602,4]
[327978542,1716732716585,-250.71231106,0.00032602,4]
[327978543,1716732716596,-267.20199615,0.00032602,4]
[327978544,1716732716606,-1101.55,0.00032602,4]
[327978545,1716732716618,-500.0,0.00032602,4]
[327978546,1716732716628,-623.77,0.00032602,4]
[327978547,1716732716638,-504.89,0.00032602,4]
[327978548,1716732716647,-570.33,0.00032602,4]
[327978549,1716732716657,-853.64,0.00032602,4]
[327978550,1716732716667,-1592.22,0.00032602,4]
[327978551,1716732716677,-1027.97,0.00032602,4]
[327978552,1716732716687,-1044.37,0.00032602,4]
[327978553,1716732716697,-1313.69,0.00032602,4]
[327978554,1716732716708,-624.18,0.00032602,4]
[327978555,1716732716718,-1190.26,0.00032602,4]
[327978556,1716732716728,-4137.91,0.00032602,4]
[327978557,1716732716737,-1036.79,0.00032602,4]
[327978558,1716732716747,-850.51,0.00032602,4]
[327978559,1716732716757,-1474.98,0.00032602,4]
[327978560,1716732716766,-500.0,0.00032602,4]
[327978561,1716732716776,-916.61,0.00032602,4]
[327978562,1716732716785,-707.12,0.00032602,4]
[327978563,1716732716795,-2412.83,0.00032602,4]
[327978564,1716732716804,-687.58,0.00032602,4]
[327978565,1716732716815,-1038.84,0.00032602,4]
[327978566,1716732716824,-654.73,0.00032602,4]
[327978567,1716732716834,-500.0,0.00032602,4]
[327978568,1716732716843,-928.91,0.00032602,4]
[327978569,1716732716852,-592.19,0.00032602,4]
[327978570,1716732716863,-617.92090372,0.00032602,4]
[327978571,1716732716873,-502.52,0.00032602,4]
[327978572,1716732716882,-1244.5,0.00032602,4]
[327978573,1716732716891,-586.69,0.00032602,4]
[327978574,1716732716901,-901.87,0.00032602,4]
[327978575,1716732716910,-827.03,0.00032602,4]
[327978576,1716732716919,-934.61,0.0003263,2]
[327978577,1716732716929,-416.02,0.0003263,2]
[327978578,1716732716938,-416.02,0.0003263,2]
[327978579,1716732716948,-870.67,0.0003263,2]
[327978580,1716732716959,-416.02,0.0003263,2]
[327978581,1716732716968,-870.67,0.0003263,2]
[327978582,1716732716978,-415.38,0.0003263,2]
[327978583,1716732716987,-870.67,0.0003263,2]
[327978584,1716732716996,-430.0,0.00032652,2]
[327978585,1716732717006,-594.14,0.000327,2]
[327978586,1716732717014,-796.37,0.000327,2]
[327978587,1716732717024,-3543.59412401,0.000328,2]
[327978588,1716732717033,-594.14,0.000328,2]
[327978589,1716732717043,-150.0,0.000328,7]
[327978590,1716732717053,-684.54556886,0.00032809,4]
[327978591,1716732717062,-1454.61251894,0.0003281,2]
[327978592,1716732717074,-150.0,0.00032837,7]
[327978593,1716732717084,-10707.06410034,0.00032873,2]
[327978594,1716732717093,-977.98,0.00032876,5]
[327978595,1716732717102,-2439.7,0.00032876,30]
[327978596,1716732717112,-2439.7,0.00032876,30]
[327978597,1716732717121,-2439.7,0.00032876,30]
[327978598,1716732717130,-2439.7,0.00032876,30]
[327978599,1716732717140,-2439.7,0.00032876,30]
[327978600,1716732717150,-2439.7,0.00032876,30]
[327978601,1716732717163,-2439.7,0.00032876,30]
[327978602,1716732717172,-2439.7,0.00032876,30]
[327978603,1716732717180,-2439.7,0.00032876,30]
[327978604,1716732717189,-2439.7,0.00032876,30]
[327978605,1716732717199,-2439.7,0.00032876,30]
[327978606,1716732717208,-2439.7,0.00032876,30]
[327978607,1716732717217,-2439.7,0.00032876,30]
[327978608,1716732717226,-2439.7,0.00032876,30]
[327978609,1716732717235,-2439.7,0.00032876,30]
[327978610,1716732717244,-2439.7,0.00032876,30]
[327978611,1716732717253,-2439.7,0.00032876,30]
[327978612,1716732717262,-2439.7,0.00032876,30]
[327978613,1716732717271,-2439.7,0.00032876,30]
[327978614,1716732717280,-2439.7,0.00032876,30]
[327978615,1716732717289,-2439.7,0.00032876,30]
[327978616,1716732717298,-2439.7,0.00032876,30]
[327978617,1716732717308,-2439.7,0.00032876,30]
[327978618,1716732717317,-2439.75144702,0.00032876,30]
[327978619,1716732717326,-867.51,0.00032876,4]
[327978620,1716732717335,-613.37,0.00032876,4]
[327978621,1716732717344,-689.25,0.00032876,4]
[327978622,1716732717353,-912.17,0.00032876,4]
[327978623,1716732717362,-577.1,0.00032876,4]
[327978624,1716732717372,-3083.08,0.00032876,4]
[327978625,1716732717381,-691.79,0.00032876,4]
[327978626,1716732717391,-500.0,0.00032876,4]
[327978627,1716732717400,-1003.57,0.00032876,4]
[327978628,1716732717409,-702.93,0.00032876,4]
[327978629,1716732717418,-500.0,0.00032876,4]
[327978630,1716732717428,-900.58,0.00032876,4]
[327978631,1716732717437,-891.34,0.00032876,4]
[327978632,1716732717447,-838.16,0.00032876,2]
[327978633,1716732717458,-576.75,0.00032876,4]
[327978634,1716732717467,-615.98,0.00032876,4]
[327978635,1716732717477,-767.17,0.00032876,4]
[327978636,1716732717490,-633.88,0.00032876,4]
[327978637,1716732717500,-758.6,0.00032876,4]
[327978638,1716732717510,-1363.1,0.00032876,4]
[327978639,1716732717519,-535.29,0.00032876,4]
[327978640,1716732717528,-500.0,0.00032876,4]
[327978641,1716732717538,-596.76,0.00032876,4]
[327978642,1716732717548,-500.0,0.00032876,4]
[327978643,1716732717557,-463.47357001,0.00032876,4]
[327978644,1716732717569,-500.0,0.00032876,4]
[327978645,1716732717578,-638.58,0.00032876,4]
[327978646,1716732717588,-813.06,0.00032876,4]
[327978647,1716732717597,-676.35,0.00032876,4]
[327978648,1716732717607,-1206.79,0.00032876,4]
[327978649,1716732717616,-758.9,0.00032876,4]
[327978650,1716732717625,-544.35,0.00032876,2]
[327978651,1716732717634,-500.0,0.00032876,4]
[327978652,1716732717643,-607.01,0.00032876,4]
[327978653,1716732717653,-500.0,0.00032876,4]
[327978654,1716732717662,-869.48,0.00032876,4]
[327978655,1716732717671,-500.0,0.00032876,4]
[327978656,1716732717680,-598.19,0.00032876,4]
[327978657,1716732717689,-501.39,0.00032876,4]
[327978658,1716732717698,-565.06,0.00032876,4]
[327978659,1716732717711,-536.08,0.00032876,4]
[327978660,1716732717719,-180.72860616,0.00032876,4]
[327978661,1716732717728,-500.0,0.00032876,4]
[327978662,1716732717737,-500.0,0.00032876,4]
[327978663,1716732717746,-575.01,0.00032876,4]
[327978664,1716732717755,-500.0,0.00032876,4]
[327978665,1716732717764,-179.19,0.00032876,4]
[327978666,1716732717773,-664.28,0.00032876,4]
[327978667,1716732717783,-500.0,0.00032876,4]
[327978668,1716732717792,-433.68994359,0.00032876,4]
[327978669,1716732717801,-1420.49,0.00032876,4]
[327978670,1716732717811,-911.95,0.00032876,4]
[327978671,1716732717821,-532.91,0.00032876,4]
[327978672,1716732717830,-876.64,0.00032876,4]
[327978673,1716732717839,-845.02,0.00032876,4]
[327978674,1716732717848,-1217.15,0.00032876,4]
[327978675,1716732717858,-500.0,0.00032876,4]
[327978676,1716732717867,-500.0,0.00032876,4]
[327978677,1716732717877,-1573.33,0.00032876,4]
[327978678,1716732717887,-1943.35,0.00032876,4]
[327978679,1716732717895,-647.0,0.00032876,4]
[327978680,1716732717905,-827.18,0.00032876,4]
[327978681,1716732717915,-525.9,0.00032876,4]
[327978682,1716732717924,-1647.19,0.00032876,4]
[327978683,1716732717933,-812.79,0.00032876,4]
[327978684,1716732717943,-656.92,0.00032876,4]
[327978685,1716732717954,-1479.16,0.00032876,4]
[327978686,1716732717964,-482.52253157,0.00032876,4]
[327978687,1716732717973,-859.25,0.00032876,4]
[327978688,1716732717982,-705.7,0.00032876,4]
[327978689,1716732717991,-524.26,0.00032876,4]
[327978690,1716732718000,-852.83,0.00032876,4]
[327978691,1716732718011,-792.18,0.00032876,4]
[327978692,1716732718021,-2563.75,0.00032876,4]
[327978693,1716732718030,-9047.47,0.00032876,4]
[327978694,1716732718039,-500.0,0.00032876,4]
[327978695,1716732718047,-500.0,0.00032876,4]
[327978696,1716732718057,-543.61,0.00032876,4]
[327978697,1716732718066,-937.7,0.00032876,4]
[327978698,1716732718075,-657.54,0.00032876,4]
[327978699,1716732718084,-782.0,0.00032876,4]
[327978700,1716732718094,-1533.52,0.00032876,4]
[327978701,1716732718103,-1870.6,0.00032876,4]
[327978702,1716732718113,-662.47,0.00032876,4]
[327978703,1716732718123,-523.58,0.00032876,4]
[327978704,1716732718132,-611.87,0.00032876,4]
[327978705,1716732718141,-709.98,0.00032876,4]
[327978706,1716732718151,-500.0,0.00032876,4]
[327978707,1716732718160,-739.81,0.00032876,4]
[327978708,1716732718170,-500.0,0.00032876,4]
[327978709,1716732718180,-6199.76,0.00032876,4]
[327978710,1716732718190,-724.86,0.00032876,4]
[327978711,1716732718199,-1320.63,0.00032876,4]
[327978712,1716732718210,-500.0,0.00032876,4]
[327978713,1716732718219,-852.95,0.00032876,4]
[327978714,1716732718228,-2564.82,0.00032876,4]
[327978715,1716732718237,-818.52,0.00032876,4]
[327978716,1716732718246,-2538.12,0.00032876,4]
[327978717,1716732718256,-500.0,0.00032876,4]
[327978718,1716732718265,-598.56,0.00032876,4]
[327978719,1716732718275,-2937.07,0.00032876,4]
[327978720,1716732718284,-571.73,0.00032876,4]
[327978721,1716732718294,-1041.17,0.00032876,4]
[327978722,1716732718303,-656.51,0.00032876,4]
[327978723,1716732718313,-1310.5,0.00032876,4]
[327978724,1716732718322,-552.73,0.00032876,4]
[327978725,1716732718331,-967.98,0.00032876,4]
[327978726,1716732718341,-1148.48,0.00032876,4]
[327978727,1716732718351,-795.96,0.00032876,4]
[327978728,1716732718360,-678.18,0.00032876,4]
[327978729,1716732718370,-576.35,0.00032876,4]
[327978730,1716732718379,-585.71,0.00032876,4]
[327978731,1716732718388,-606.32,0.00032876,4]
[327978732,1716732718398,-1027.88,0.00032876,4]
[327978733,1716732718407,-2390.71,0.00032876,4]
[327978734,1716732718416,-720.94,0.00032876,4]
[327978735,1716732718425,-884.01,0.00032876,4]
[327978736,1716732718434,-571.26,0.00032876,4]
[327978737,1716732718444,-1408.04,0.00032876,4]
[327978738,1716732718455,-422.14114293,0.00032876,4]
[327978739,1716732718464,-317.95417167,0.00032876,4]
[327978740,1716732718474,-1802.76,0.00032876,2]
[327978741,1716732718486,-1802.76,0.00032876,2]
[327978742,1716732718496,-1802.76,0.00032876,2]
[327978743,1716732718505,-1802.76,0.00032876,2]
[327978744,1716732718515,-1802.76,0.00032876,2]
[327978745,1716732718524,-1802.76,0.00032876,2]
[327978746,1716732718534,-1802.76,0.00032876,2]
[327978747,1716732718543,-1802.76,0.00032876,2]
[327978748,1716732718553,-1802.76,0.00032876,2]
[327978749,1716732718566,-1802.76,0.00032876,2]
[327978750,1716732718575,-1802.76,0.00032876,2]
[327978751,1716732718585,-1085.42,0.00032876,4]
[327978752,1716732718594,-1802.76,0.00032876,2]
[327978753,1716732718605,-1268.26,0.00032876,4]
[327978754,1716732718771,-1802.76,0.00032876,2]
[327978755,1716732718782,-1802.76,0.00032876,2]
[327978756,1716732718792,-8694.34,0.00032876,4]
[327978757,1716732718802,-1802.76,0.00032876,2]
[327978758,1716732718812,-1802.76,0.00032876,2]
[327978759,1716732718822,-1802.76,0.00032876,2]
[327978760,1716732718831,-1802.76,0.00032876,2]
[327978761,1716732718841,-1802.76,0.00032876,2]
[327978762,1716732718852,-1802.76,0.00032876,2]
[327978763,1716732718861,-1802.76,0.00032876,2]
[327978764,1716732718871,-1802.76,0.00032876,2]
[327978765,1716732718881,-1802.76,0.00032876,2]
[327978766,1716732718891,-1802.8252198,0.00032876,2]
[327978767,1716732718901,-500.0,0.00032876,4]
[327978768,1716732718910,-1268.05,0.00032876,4]
[327978769,1716732718919,-1448.06,0.00032876,4]
[327978770,1716732718929,-972.62,0.00032876,4]
[327978771,1716732718939,-573.16,0.00032876,4]
[327978772,1716732718949,-3904.28,0.00032876,4]
[327978773,1716732718959,-914.87,0.00032876,4]
[327978774,1716732718968,-1089.59,0.00032876,4]
[327978775,1716732718978,-885.34,0.00032876,4]
[327978776,1716732718987,-591.51,0.00032876,4]
[327978777,1716732718997,-500.0,0.00032876,4]
[327978778,1716732719007,-1079.94,0.00032876,4]
[327978779,1716732719017,-879.76,0.00032876,4]
[327978780,1716732719026,-1841.81,0.00032876,4]
[327978781,1716732719036,-500.0,0.00032876,4]
[327978782,1716732719045,-1077.58,0.00032876,4]
[327978783,1716732719057,-625.43,0.00032876,4]
[327978784,1716732719067,-710.46,0.00032876,4]
[327978785,1716732719076,-568.85,0.00032876,4]
[327978786,1716732719085,-647.72,0.00032876,4]
[327978787,1716732719095,-869.84,0.00032876,4]
[327978788,1716732719105,-678.18,0.00032876,4]
[327978789,1716732719114,-717.42,0.00032876,4]
[327978790,1716732719124,-576.0,0.00032876,4]
[327978791,1716732719134,-1137.45,0.00032876,4]
[327978792,1716732719144,-500.0,0.00032876,4]
[327978793,1716732719158,-1101.55,0.00032876,4]
[327978794,1716732719167,-623.77,0.00032876,4]
[327978795,1716732719177,-504.89,0.00032876,4]
[327978796,1716732719187,-570.33,0.00032876,4]
[327978797,1716732719197,-853.64,0.00032876,4]
[327978798,1716732719207,-1592.22,0.00032876,4]
[327978799,1716732719217,-1027.97,0.00032876,4]
[327978800,1716732719227,-1044.37,0.00032876,4]
[327978801,1716732719237,-1313.69,0.00032876,4]
[327978802,1716732719247,-624.18,0.00032876,4]
[327978803,1716732719256,-1190.26,0.00032876,4]
[327978804,1716732719266,-4137.91,0.00032876,4]
[327978805,1716732719275,-1036.79,0.00032876,4]
[327978806,1716732719285,-850.51,0.00032876,4]
[327978807,1716732719294,-1474.98,0.00032876,4]
[327978808,1716732719303,-500.0,0.00032876,4]
[327978809,1716732719313,-916.61,0.00032876,4]
[327978810,1716732719322,-707.12,0.00032876,4]
[327978811,1716732719331,-2412.83,0.00032876,4]
[327978812,1716732719340,-687.58,0.00032876,4]
[327978813,1716732719350,-1038.84,0.00032876,4]
[327978814,1716732719360,-654.73,0.00032876,4]
[327978815,1716732719369,-500.0,0.00032876,4]
[327978816,1716732719379,-928.91,0.00032876,4]
[327978817,1716732719388,-592.19,0.00032876,4]
[327978818,1716732719398,-502.52,0.00032876,4]
[327978819,1716732719407,-1244.5,0.00032876,4]
[327978820,1716732719416,-586.69,0.00032876,4]
[327978821,1716732719425,-901.87,0.00032876,4]
[327978822,1716732719434,-195.0,0.00032877,13]
[327978823,1716732719444,-168.57,0.00032877,2]
[327978824,1716732719454,-24095.73,0.00032877,2]
[327978825,1716732719464,-28346.8,0.00032877,2]
[327978826,1716732719474,-322.83,0.00032877,2]
[327978827,1716732719488,-1000.0,0.00032877,14]
[327978828,1716732719497,-307.32,0.0003288,2]
[327978829,1716732719506,-107114.40641645,0.000329,3]
[327978830,1716732719515,-13784.23024171,0.000329,30]
[327978831,1716732719527,-12860.98857639,0.000329,30]
[327978832,1716732719536,-2000.0,0.000329,9]
[327978833,1716732719545,-445.0,0.000329,21]
[327978834,1716732719556,-300.0,0.000329,12]
[327978835,1716732719567,-753.04240616,0.00032922,7]